Cogmind - Beta 16 @@@ ROGUE MODE // 2025.12.26 @ 03:17:46 Player: tsintsir Result: Destroyed by OM-VW5(j) with Overtuned Pulse Rifle Performance ------------- Evolutions (0) 0 Regions Visited (3) 600 Robots Destroyed (22) 110 Value Destroyed (633) 633 Prototype IDs (14) 280 Alien Tech Used (0) 0 Bonus (85) 85 TOTAL SCORE: 1708 Bonus ------- Follower Combat Kills 85 Cogmind --------- Core Integrity 0/250 Matter 300/300 Energy 71/100 System Corruption 0% Temperature Cool (91) Movement Core (100) Ox1 Location -8/Recycling Parts ------- > --- POWER (1) -------- (None) > --- PROPULSION (2) --- (None) > --- UTILITY (2) ------ Scrap Engine > --- WEAPON (2) ------- Subdweller Laser > --- INVENTORY (5) ---- Gun Armor Scrap Shield V3-11A's Pendant Mining Laser Peak State ------------ > --- POWER ------------ Subdweller Power Source > --- PROPULSION ------- Subdweller Monowheel > --- UTILITY ---------- Scrap Engine > --- WEAPON ----------- Subdweller Laser Subdweller Laser > --- INVENTORY -------- Gun Armor Scrap Shield V3-11A's Pendant Mining Laser [Rating: 27] Favorites ----------- Power Subdweller Power Source Engine Subdweller Power Source Power Core Light Nuclear Core Propulsion Subdweller Monowheel Treads Light Treads Wheel Subdweller Monowheel Utility Signal Interpreter Device V3-11A's Pendant Storage Small Storage Unit Processor Signal Interpreter Protection Utility Shielding Weapon Subdweller Laser Energy Gun Subdweller Laser Ballistic Gun Battle Rifle Special Weapon Mining Laser Build | -11 -10 -10 -8 ------- Run | Yrd Mat Sub Rec Slots Evolved . | . . . . Power . | . . . . Propulsion . | . . . . Utility . | . . . . Weapon . | . . . . Parts Attached 30 | 7 7 15 1 Power 4 | 1 1 2 . Engine 3 | 1 . 2 . Core 1 | . 1 . . Reactor . | . . . . Propulsion 6 | 2 . 4 . Treads 2 | 2 . . . Leg . | . . . . Wheel 4 | . . 4 . Hover . | . . . . Flight . | . . . . Utility 9 | 2 4 2 1 Device 5 | 1 2 1 1 Storage 2 | 1 1 . . Processor 1 | . . 1 . Hackware . | . . . . Protection 1 | . 1 . . Artifact . | . . . . Weapon 11 | 2 2 7 . Energy Gun 8 | 2 1 5 . Energy Cannon . | . . . . Ballistic Gun 2 | . . 2 . Ballistic Cannon . | . . . . Launcher . | . . . . Special Weapon 1 | . 1 . . Impact Weapon . | . . . . Slashing Weapon . | . . . . Piercing Weapon . | . . . . Special Melee Weapon . | . . . . Unidentified Prototypes 2 | . . 1 1 Parts Lost 11 | . 1 6 4 Power 3 | . . 2 1 Propulsion 5 | . 1 2 2 Utility . | . . . . Weapon 3 | . . 2 1 Highest Loss Streak 4 | . 1 2 4 To Critical Strikes . | . . . . Average Backups 4 | 2 6 4 4 Power . | . 1 . . Propulsion . | . . . . Utility 2 | . 2 2 2 Weapon 2 | 1 2 2 1 Tool/Special . | . . . . Unused Backups 4 | . 1 . 3 Power . | . . . . Propulsion . | . . . . Utility 3 | . 1 . 2 Weapon 1 | . . . 1 Tool/Special . | . . . . Average Slot Usage (%) 96 | . 98 95 99 Engine 12 | . 4 13 14 Core 1 | . 9 . . Treads 3 | . 26 . . Wheel 21 | . . 23 27 Device 11 | . 2 12 14 Storage 4 | . 15 3 . Processor 10 | . . 11 13 Protection 1 | . 9 . . Energy Gun 22 | . 27 20 28 Ballistic Gun 1 | . . 2 . Special Weapon 3 | . . 5 . Peak Build Rating 27 | 7 10 15 27 Average Rating 13 | 5 8 13 15 On Entrance 8 | . 7 10 15 Avg Prop Armor Cover (%) 12 | . . 11 15 Naked Turns . | . . . . Heaviest Build 18 | 14 18 18 14 Greatest Support 40 | 40 40 40 3 Greatest Overweight (x) 5 | . . 5 4 Average Overweight (x) 2 | . . 2 4 Largest Inventory Capacity 8 | 8 8 8 5 Average Capacity 5 | 7 8 5 5 Most Carried 8 | 4 8 8 5 Average Carried 5 | 2 6 5 5 Final Capacity 8 | 8 8 5 5 Final Carried 7 | 4 7 5 5 Class Distribution -------------------- 98% | Mutant Dominant Class ---------------- Mutant | -10/Materials Mutant | -10/Subcaves Mutant | -8/Recycling Resources | -11 -10 -10 -8 ----------- Run | Yrd Mat Sub Rec Matter Collected 872 | 260 198 414 . Remotely . | . . . . Salvage Created 932 | 168 409 297 58 Parts 49 | 12 19 13 5 Haulers Intercepted . | . . . . Recyclers Shooed 2 | . 2 . . Parts Field Recycled . | . . . . Retrieved Matter . | . . . . Parts Self-Destructed 19 | . . 19 . Prevented . | . . . . Parts Restored . | . . . . Kills | -11 -10 -10 -8 ------- Run | Yrd Mat Sub Rec Combat Hostiles Destroyed 14 | . 7 6 1 Guns 12 | . 5 6 1 Classes Destroyed 8 | 2 2 4 . Tunneler 4 | 4 . . . Recycler 2 | 1 1 . . Turret 1 | . . 1 . Watcher 1 | . 1 . . Swarmer 1 | . . 1 . Grunt 7 | . 7 . . Sentry 2 | . . 1 1 Subdweller 4 | . . 4 . Best Kill Streak 3 | 3 1 2 1 Combat Bots Only 2 | . 1 2 1 Max Kills in Single Turn 1 | 1 1 1 1 Gunslinging . | . . . . Exploded . | . . . . Melee . | . . . . Uniques/NPCs Destroyed . | . . . . Combat | -11 -10 -10 -8 -------- Run | Yrd Mat Sub Rec Hostile Shots Fired 132 | . 44 70 18 Missed 42 | . 11 26 5 Hits 90 | . 33 44 13 Projectile 90 | . 33 44 13 AOE 1 | . . 1 . Critical Strikes 4 | . 2 1 1 Damage Taken 1341 | . 462 602 277 Core 257 | . 81 76 100 Absorbed by Shields . | . . . . Redirected to Shielding 3 | . 3 . . Core Remaining (%) 100 | 100 . . . Volleys Fired 173 | 10 46 115 2 Largest 2 | 2 2 2 2 Hottest 160 | 90 100 160 120 Shots Fired 289 | 20 87 178 4 Gun 209 | 20 86 99 4 Cannon . | . . . . Launcher . | . . . . Special 80 | . 1 79 . Kinetic 23 | . . 23 . Thermal 266 | 20 87 155 4 Explosive . | . . . . Electromagnetic . | . . . . Robot Hit Streak 20 | 3 8 20 7 Robot Miss Streak 6 | 4 6 3 . Penetration Max . | . . . . Secondary Targets 1 | . 1 . . Max Gunslinging Chain 1 | . 1 . . Shots Hit Robots 110 | 9 51 46 4 Core Hits 46 | 6 20 18 2 Critical Kills . | . . . . Critical Parts Destroyed . | . . . . Critical Strikes 12 | 1 6 5 . Burn 12 | 1 6 5 . Melee Attacks . | . . . . Impact . | . . . . Slashing . | . . . . Piercing . | . . . . Sneak Attacks . | . . . . Combat Hostiles . | . . . . Follow-up Attacks . | . . . . Damage Inflicted 1480 | 106 634 652 88 Guns 1480 | 106 634 652 88 Cannons . | . . . . Explosions . | . . . . Melee . | . . . . Ramming . | . . . . Kinetic 183 | . . 183 . Thermal 1297 | 106 634 469 88 Explosive . | . . . . Electromagnetic . | . . . . Impact . | . . . . Slashing . | . . . . Piercing . | . . . . Highest Corruption . | . . . . Average Corruption . | . . . . Corruption Purged . | . . . . Corruption Blocked . | . . . . Overload Shots . | . . . . Overflow Damage . | . . . . Projectiles . | . . . . Explosions . | . . . . Melee . | . . . . Knockbacks . | . . . . Impact . | . . . . Kinetic . | . . . . Secondary . | . . . . Self-Inflicted Damage . | . . . . Shots . | . . . . Rammed . | . . . . Targets Rammed . | . . . . Kicked . | . . . . Crushed . | . . . . Highest Temperature 390 | 90 390 9 79 Average Temperature 102 | 34 121 4 40 Received Heat Transfer 667 | . 294 192 181 Effects 5 | . 5 . . Shutdowns 1 | . 1 . . Interference 2 | . 2 . . Matter Decay 2 | . 2 . . Siege Activations . | . . . . Martial Activations . | . . . . Shielding Activations . | . . . . Robots Disrupted . | . . . . Combat Hostiles . | . . . . Robots Corrupted . | . . . . Combat Hostiles . | . . . . Parts Fried . | . . . . Impact Corruptions . | . . . . Robots Melted 2 | . 2 . . Combat Hostiles 2 | . 2 . . Parts Melted 5 | . 4 1 . Heat Transferred 4281 | 371 2331 1519 60 Parts Sabotaged . | . . . . Parts Stolen . | . . . . Parts Stripped . | . . . . Power Chain Reactions . | . . . . Alert | -11 -10 -10 -8 ------- Run | Yrd Mat Sub Rec Maximum Alert Level . | . . . . Low Security (%) 100 | 100 100 . 100 Level 1 . | . . . . Level 2 . | . . . . Level 3 . | . . . . Level 4 . | . . . . Level 5 . | . . . . High Security . | . . . . Max Security . | . . . . Peak Influence 75 | 5 75 . 47 Initial 47 | . . . 47 Average 9 | . 20 . 3 Influence Increases 554 | 25 273 217 39 Destroy 0b10 Robot/C 300 | . 140 140 20 Destroy 0b10 Robot/NC 40 | 25 10 . 5 Destroy Leader 52 | . 42 10 . Allied During Kill 7 | . . 7 . Successful Hack 20 | . 6 . 14 Disable Machine 15 | . 15 . . Lose Combat Pursuer 120 | . 60 60 . Influence Decreases 554 | 25 273 118 138 Entered New Map 52 | . . . 52 Time Decay 432 | 25 263 78 66 Lost Part 10 | . 10 . . Lost Ally 60 | . . 40 20 Squads Dispatched 1 | . 1 . . Investigation . | . . . . Extermination . | . . . . Reinforcement 1 | . 1 . . Assault . | . . . . Garrison . | . . . . Intercept . | . . . . Searches Triggered . | . . . . Construction Impeded . | . . . . Haulers Reinforced . | . . . . Active Scanning Responses . | . . . . Cargo Convoy Interrupts . | . . . . Stealth | -11 -10 -10 -8 --------- Run | Yrd Mat Sub Rec Distress Signals . | . . . . Communications Jammed . | . . . . Distress Signals . | . . . . Times Spotted 43 | . 15 24 4 Peak Tracking Total 6 | . 4 6 5 Tactical Retreats 5 | . 3 2 . Traps | -11 -10 -10 -8 ------- Run | Yrd Mat Sub Rec Traps Triggered 1 | . . 1 . Indirectly . | . . . . Trap Hack Attempts . | . . . . Triggered . | . . . . Disarmed . | . . . . Reprogrammed . | . . . . Reused . | . . . . Traps Extracted . | . . . . Installed . | . . . . Triggered . | . . . . Machines | -11 -10 -10 -8 ---------- Run | Yrd Mat Sub Rec Machines Disabled 3 | . 1 2 . Max in Single Turn 1 | . 1 1 . Machines Repaired . | . . . . Machines Dismantled . | . . . . Machines Sabotaged . | . . . . Overloaded Fab Kills . | . . . . Hacking | -11 -10 -10 -8 --------- Run | Yrd Mat Sub Rec Machines Accessed 10 | . 3 2 5 Terminals 6 | . 3 . 3 Fabricators . | . . . . Repair Stations . | . . . . Recycling Units . | . . . . Scanalyzers . | . . . . Garrison Access . | . . . . Total Hacks 46 | . 8 4 34 Successful 38 | . 3 4 31 Failed 8 | . 5 . 3 Catastrophic . | . . . . Database Lockouts . | . . . . Manual 17 | . 8 . 9 Terminals 16 | . 8 . 8 Fabricators . | . . . . Repair Stations . | . . . . Recycling Units . | . . . . Scanalyzers . | . . . . Garrison Access . | . . . . Terminal Hacks 34 | . 1 4 29 Record 27 | . . 3 24 Terminal Index 3 | . 1 . 2 Registered Components 1 | . . . 1 Proto ID Catalog 1 | . . 1 . Release Object 2 | . . . 2 Fabricator Hacks . | . . . . Repair Station Hacks . | . . . . Recycling Unit Hacks . | . . . . Scanalyzer . | . . . . Garrison Access Hacks . | . . . . Unauthorized Hacks 4 | . 2 . 2 Terminals 4 | . 2 . 2 Track 2 | . . . 2 Assimilate 1 | . 1 . . Operators 1 | . 1 . . Fabricators . | . . . . Repair Stations . | . . . . Recycling Units . | . . . . Scanalyzers . | . . . . Garrison Access . | . . . . Data Cores Recovered . | . . . . Used . | . . . . Hacking Detections 5 | . 3 . 2 Full Trace Events . | . . . . Feedback Events . | . . . . Feedback Blocked . | . . . . Robot Schematics Acquired . | . . . . Robots Built . | . . . . Authchips . | . . . . Time . | . . . . Total Robot Build Rating . | . . . . Part Schematics Acquired . | . . . . Parts Built . | . . . . Authchips . | . . . . Time . | . . . . Total Part Build Rating . | . . . . Part Studies Acquired . | . . . . Parts Repaired . | . . . . Time . | . . . . Parts Recycled . | . . . . Recycled Matter . | . . . . Retrieved Matter . | . . . . Retrieved Components . | . . . . Parts Scanalyzed . | . . . . Part Schematics Acquired . | . . . . Parts Damaged . | . . . . Bothacking | -11 -10 -10 -8 ------------ Run | Yrd Mat Sub Rec Used RIF Installer . | . . . . Robots Hacked . | . . . . Non-combat . | . . . . Combat . | . . . . Robot Hacks Applied . | . . . . Relay Couplers Released . | . . . . Fabnet Peak Effective % . | . . . . Robots Rewired . | . . . . Allies Hacked . | . . . . Hacks Repelled . | . . . . Allies | -11 -10 -10 -8 -------- Run | Yrd Mat Sub Rec Total Allies 5 | . 1 4 . Largest Group 1 | . 1 1 1 Highest-Rated Group 19 | . 10 19 19 Highest-Rated Ally 19 | . 10 19 19 Total Orders . | . . . . Ally Attacks 21 | . . 20 1 Total Damage 265 | . . 249 16 Kills 5 | . . 4 1 Allies Corrupted . | . . . . Allies Melted . | . . . . Intel | -11 -10 -10 -8 ------- Run | Yrd Mat Sub Rec Active Infowar (turns) 43 | 12 31 . . Seismic 43 | 12 31 . . Robot Analysis Total . | . . . . Derelict Logs Recovered 1 | . . 1 . Drone Launches . | . . . . Drone Recoveries . | . . . . Exploration | -11 -10 -10 -8 ------------- Run | Yrd Mat Sub Rec Turns Passed 7864 | 157 825 5795 1087 Spaces Moved 3632 | 76 327 2802 427 Core 1963 | 7 . 1529 427 Treads 453 | 69 327 57 . Legs . | . . . . Wheels 1216 | . . 1216 . Hover . | . . . . Flight . | . . . . Fastest Speed 50 | 50 160 100 250 Average Speed 185 | 149 160 180 250 Slowest Speed 300 | 160 160 300 250 Overloaded Moves . | . . . . Propulsion Burnouts . | . . . . Robots Hopped . | . . . . Potential Cave-ins . | . . . . Cave-ins Triggered . | . . . . Exploration Rate (%) 59 | 6 62 97 71 Regions Visited 3 Branch Regions 2 Pre-discovered Areas 3 | . . 3 . Known Exits Taken 1 | . . 1 . Unknown Exits Taken 2 | 1 1 . . Scrap Searched 5 | . . 5 . Spaces Dug . | . . . . Terrain Destroyed . | . . . . Melee . | . . . . Projectile . | . . . . AOE . | . . . . Terrain Rammed . | . . . . Walls Destroyed . | . . . . Machines Disabled . | . . . . Actions | -11 -10 -10 -8 --------- Run | Yrd Mat Sub Rec Total 4281 | 96 540 3201 444 Wait 386 | . 149 226 11 Move 3629 | 75 326 2801 427 Hop . | . . . . Pick Up 16 | 4 3 9 . Fast Attach 24 | 7 5 11 1 Attach 4 | . . 4 . Detach 5 | . 3 . 2 Swap 25 | . 3 22 . Drop 19 | . 5 13 1 Fire 173 | 10 46 115 2 Melee . | . . . . Ram . | . . . . Kick . | . . . . Crush . | . . . . Escape Stasis . | . . . . Rewire . | . . . . Trap . | . . . . Miscellaneous . | . . . . Route ------- -11/Scrapyard -10/Materials (discovered 2 exits: [*Mat] / *Sub) -10/Subcaves (discovered 3 exits: *Mat x2 / *Rec) -8/Recycling (discovered 1 exit: *Fac) History --------- Turn | Location | Event 8 | -11/Scrapyard | Discovered new exit (range 15) 158 | -11/Scrapyard | Entered Materials 306 | -10/Materials | Build established: Mutant 695 | -10/Materials | Discovered new exit (range 16) 965 | -10/Materials | Discovered new exit (range 8) 983 | -10/Materials | Entered Subcaves 983 | -10/Subcaves | Accompanied by 1 ally 984 | -10/Subcaves | Approached by a straggling Scientist 1102 | -10/Subcaves | Ambushed by Subdwellers from Twisted Machinery 1414 | -10/Subcaves | Shifting Twisted Machinery released Battle Rifle 1419 | -10/Subcaves | Shifting Twisted Machinery released Battle Cannon 1955 | -10/Subcaves | Discovered new exit (range 4) 1967 | -10/Subcaves | Identified exit to Materials 2149 | -10/Subcaves | Shifting Twisted Machinery released Battle Rifle 2232 | -10/Subcaves | Visited Clippyterm 2235 | -10/Subcaves | Learned location of Section 7 (-2) 2444 | -10/Subcaves | Visited triangular shrine 2451 | -10/Subcaves | Found Prototype Device 2451 | -10/Subcaves | Identified V3-11A's Pendant 2456 | -10/Subcaves | Befriended Subdweller 2545 | -10/Subcaves | Visited 4L-MR0's lab 2571 | -10/Subcaves | Found Gun Armor 2751 | -10/Subcaves | Shifting Twisted Machinery released Sub. Beam Cannon 3046 | -10/Subcaves | Learned location of Zion (-6) 3046 | -10/Subcaves | Met a Zionite searching for "candidates" 3441 | -10/Subcaves | Shifting Twisted Machinery released Sub. Laser 3443 | -10/Subcaves | Shifting Twisted Machinery released Battle Cannon 3528 | -10/Subcaves | A swath of the cavern ceiling suddenly collapsed 4352 | -10/Subcaves | A swath of the cavern ceiling suddenly collapsed 4604 | -10/Subcaves | Learned location of Storage (-8) 5137 | -10/Subcaves | Approached by friendly Subdweller 5226 | -10/Subcaves | Discovered exit to Materials (range 9) 5278 | -10/Subcaves | Core integrity fell below 50% 5299 | -10/Subcaves | Discovered new exit (range 15) 5301 | -10/Subcaves | Befriended Subdweller 5372 | -10/Subcaves | Identified exit to Recycling 6141 | -10/Subcaves | Befriended Subdweller 6778 | -10/Subcaves | Entered Recycling 6778 | -8/Recycling | Accompanied by 1 ally 7203 | -8/Recycling | Discovered new exit (range 5) 7210 | -8/Recycling | Identified exit to Factory 7742 | -8/Recycling | Scanned before Scraplab entrance 7810 | -8/Recycling | Entered Scraplab 7852 | -8/Recycling | Angered Scraplab inhabitants 7857 | -8/Recycling | Found Prototype Device 7857 | -8/Recycling | Identified Scrap Engine 7861 | -8/Recycling | Core integrity fell below 20% 7865 | -8/Recycling | Destroyed by OM-VW5(j) with Overtuned Pulse Rifle Last Messages --------------- Figure out how the newest subatomizer persuasion algorithm actually works so I can provide more color on that. 07850_ Connecting with Scraplab SEP... >>Release Inventory Accessing inventory controls... Prototype released... URGENT: Link to external system right away! 07853_ Broken Sub. Monowheel destroyed. 07855_ Discarded Signal Interpreter. 07856_ Dropped Sub. Machine Gun. 07857_ Acquired Prototype Device. 07857_ Identified Scrap Engine. 07858_ 9E-54J(j): "Defend the Scraplab!" 07860_ Broken Sub. Monowheel destroyed. 07861_ Supplies damaged. 07861_ Broken Sub. Power Source destroyed. 07862_ Machine disabled. 07863_ Critical hit (Burn: +50). 07864_ Scraplab SEP disabled. 07864_ Sub. Laser destroyed. Map ----- +----------------------------------------------------+ | """ #??????????????????????? | | """ #??????????????????????? | | #??????????????????????? | | +??????????????????????? | | """ #??????????????????????? | | """ #??????????????????????? | | """ #??????????????????????? | | #??????????????????????? | | #???#+#????????????????? | | """ #???# #????????????????? | | """ #???# #????????????????? | | """ ##### #?######?????????? | | #?# #?????????? | | #?# #??###????? | | """ ### #### ##???? | | """ + # #???? | | """ ##### ##### #???? | | #???# #???# #???? | | #???# #???# #???? | | #???######???# #???? | | ### ## #????????#####j####? | | ??# ## #????????#"" "#? | | ### ## #????????#"& j "#? | | # ## %????????#" "#? | | # ## %????????#"" "#? | | # ## % ???????#"& @ "#? | | # #? ##???????#" "#? | | # #? ?????????#"X "#? | | + #? ?????????#" cc ###? | | # #? ?????????# " j#??? | | ######? ?????????# """ ??? | | #??????+?????????#########?? | | #??????????????????????????? | | #??????????????????????????? | | #??????????????????????????? | | ###??????????????????????????? | | ?????????????????????????????? | | ?????????????????????????????? | | ?????????????????????????????? | | ?????????????????????????????? | | ?????????????????????????????? | | ?????????????????????????????? | | | | | | | | | | | | | | | | | +----------------------------------------------------+ Best States ------------- Heat Dissipation 39 Energy Generation 15 Energy Capacity 500 Matter Stores 300 Matter Capacity 300 Sight Range 16 Terrain Scan Density 10 Utility Shielding 33 Evasion (%) 40 Recoil Reduction 2 Item Schematics ----------------- None Robot Schematics ------------------ None Fabricated ------------ Nothing Repaired ---------- Nothing Studied --------- None Alien Tech Used ----------------- None Achievements -------------- SUBSUB You May Approach The Wall Challenges ------------ None Game ------ Seed StealthStorageFilter Manual? 0 Play Time 00:46:01 Cumulative 53.6 hours Start 2025.12.26 @ 02:26:19 End 2025.12.26 @ 03:17:46 Sessions 1 Manual Loads 0 Difficulty Rogue Special Mode None Game No. 49 Rogue 49 Adventurer 0 Explorer 0 Win Type - Total 0 Types 0/0/0/0/0/0/0/0/0/0 Lore% 38 Gallery% 43 Achievement% 32 Wizard Run 0 Options --------- Layout 0 ASCII 0 Keyboard 0 Movement Mouse Keybinds 0 Fullscreen 2 Font 24/Smallcaps Map View 76x50 Zoom Use 0% Tactical HUD 1 Map Filters NONE Filters NONE Steam 1 RUN: 8756cbf7-a59a-450a-b08a-8c692a4e7f21